Cogmind - Beta 11.1 *** ADVENTURER MODE // 2022.10.23 @ 21:44:59 Player: Deus Result: Self-destructed Performance ------------- Evolutions (1) 500 Regions Visited (3) 600 Robots Destroyed (21) 105 Value Destroyed (733) 733 Prototype IDs (0) 0 Alien Tech Used (0) 0 Bonus (0) 0 TOTAL SCORE: 1938 Bonus ------- None Cogmind --------- Core Integrity 257/400 Matter 280/300 Energy 46/100 System Corruption 1% Temperature Cool (0) Movement Core (150) Ox2 Location -9/Mines Parts ------- > --- POWER (1) -------- (None) > --- PROPULSION (3) --- (None) > --- UTILITY (3) ------ Heat Sink Small Storage Unit Improved Terrain Scanner > --- WEAPON (2) ------- Small Laser > --- INVENTORY (8) ---- Aluminum Leg Large Storage Unit Advanced Weight Redist. System ECM Suite Medium Laser Medium Laser Grenade Launcher Heavy Hammer Peak State ------------ > --- POWER ------------ Light Ion Engine > --- PROPULSION ------- Aluminum Leg Aluminum Leg Improved Aluminum Leg > --- UTILITY ---------- Small Storage Unit Improved Terrain Scanner Improved Targeting Computer > --- WEAPON ----------- Medium Laser Medium Laser > --- INVENTORY -------- Light Ion Engine Aluminum Leg Aluminum Leg Advanced Weight Redist. System ECM Suite Medium Laser Grenade Launcher Heavy Hammer [Rating: 14] Favorites ----------- Power Light Ion Engine Engine Light Ion Engine Propulsion Aluminum Leg Leg Aluminum Leg Utility Small Storage Unit Device Improved Terrain Scanner Storage Small Storage Unit Processor Improved Targeting Computer Weapon Medium Laser Energy Gun Medium Laser Special Weapon Mining Laser Build | -11 -10 -9 -9 ------- Run | Scr Mat Mat Min Slots Evolved 2 | . . 2 . Power . | . . . . Propulsion 1 | . . 1 . Utility 1 | . . 1 . Weapon . | . . . . Parts Attached 17 | 1 3 11 2 Power 1 | . . 1 . Engine 1 | . . 1 . Core . | . . . . Reactor . | . . . . Propulsion 6 | . 1 5 . Treads . | . . . . Leg 6 | . 1 5 . Wheel . | . . . . Hover . | . . . . Flight . | . . . . Utility 7 | 1 . 4 2 Device 4 | 1 . 3 . Storage 2 | . . . 2 Processor 1 | . . 1 . Hackware . | . . . . Protection . | . . . . Artifact . | . . . . Weapon 3 | . 2 1 . Energy Gun 2 | . 1 1 . Energy Cannon . | . . . . Ballistic Gun . | . . . . Ballistic Cannon . | . . . . Launcher . | . . . . Special Weapon 1 | . 1 . . Impact Weapon . | . . . . Slashing Weapon . | . . . . Piercing Weapon . | . . . . Special Melee Weapon . | . . . . Unidentified Prototypes . | . . . . Parts Lost 8 | . . 8 . Power 2 | . . 2 . Propulsion 4 | . . 4 . Utility 1 | . . 1 . Weapon 1 | . . 1 . Highest Loss Streak 6 | . . 6 . To Critical Strikes . | . . . . Average Slot Usage (%) 95 | . 100 97 44 Engine 11 | . 14 10 . Leg 28 | . 28 32 . Device 16 | . 14 18 22 Storage 12 | . 14 11 11 Energy Gun 24 | . 27 21 11 Naked Turns . | . . . . Heaviest Build 15 | 13 13 15 8 Greatest Support 33 | 20 20 33 3 Greatest Overweight (x) 2 | . . 2 2 Average Overweight (x) . | . . . 2 Largest Inventory Capacity 15 | 8 8 8 15 Average Capacity 8 | 8 8 8 8 Most Carried 8 | 8 8 8 8 Average Carried 7 | 6 7 7 7 Final Capacity 8 | 8 8 8 8 Final Carried 8 | 8 8 7 8 Class Distribution -------------------- 86% | Mutant 13% | Scavenger-Mutant Dominant Class ---------------- Mutant | -10/Materials Mutant | -9/Materials Mutant | -9/Mines Resources | -11 -10 -9 -9 ----------- Run | Scr Mat Mat Min Matter Collected 350 | 210 30 110 . Remotely . | . . . . Salvage Created 888 | 82 298 508 . Parts 34 | 4 14 16 . Haulers Intercepted . | . . . . Recyclers Shooed . | . . . . Parts Field Recycled . | . . . . Retrieved Matter . | . . . . Parts Self-Destructed . | . . . . Prevented . | . . . . Kills | -11 -10 -9 -9 ------- Run | Scr Mat Mat Min Combat Hostiles Destroyed 19 | . 7 12 . Guns 17 | . 6 11 . Classes Destroyed 4 | 2 1 1 . Tunneler 1 | 1 . . . Recycler 1 | 1 . . . Grunt 17 | . 7 10 . Sentry 2 | . . 2 . Best Kill Streak 4 | 2 2 4 . Combat Bots Only 4 | . 2 4 . Max Kills in Single Turn 2 | 2 1 1 . Gunslinging . | . . . . Exploded . | . . . . Melee . | . . . . Uniques/NPCs Destroyed . | . . . . Combat | -11 -10 -9 -9 -------- Run | Scr Mat Mat Min Damage Taken 996 | . 180 816 . Core 171 | . 28 143 . Absorbed by Shields . | . . . . Core Remaining (%) 94 | 100 88 . . Volleys Fired 80 | 3 23 54 . Largest 2 | 2 2 2 . Hottest 150 | 100 150 100 . Shots Fired 151 | 6 41 104 . Gun 150 | 6 40 104 . Cannon . | . . . . Launcher . | . . . . Special 1 | . 1 . . Kinetic . | . . . . Thermal 151 | 6 41 104 . Explosive . | . . . . Electromagnetic . | . . . . Robot Hit Streak 48 | 5 13 48 . Robot Miss Streak 2 | . 2 1 . Penetration Max . | . . . . Secondary Targets 1 | . . 1 . Max Gunslinging Chain 1 | . . 1 . Shots Hit Robots 130 | 5 31 94 . Core Hits 41 | 2 13 26 . Critical Kills . | . . . . Critical Parts Destroyed . | . . . . Critical Strikes 10 | 3 4 3 . Burn 10 | 3 4 3 . Melee Attacks . | . . . . Impact . | . . . . Slashing . | . . . . Piercing . | . . . . Sneak Attacks . | . . . . Combat Hostiles . | . . . . Follow-up Attacks . | . . . . Damage Inflicted 1573 | 74 384 1115 . Guns 1573 | 74 384 1115 . Cannons . | . . . . Explosions . | . . . . Melee . | . . . . Ramming . | . . . . Kinetic . | . . . . Thermal 1573 | 74 384 1115 . Explosive . | . . . . Electromagnetic . | . . . . Impact . | . . . . Slashing . | . . . . Piercing . | . . . . Highest Corruption 2 | . 2 1 1 Average Corruption 1 | . 1 1 1 Corruption Purged . | . . . . Corruption Blocked . | . . . . Effects 14 | . 4 9 1 Message Errors 2 | . 1 1 . Matter Fused 1 | . . 1 . Heat Flow Errors 4 | . 2 2 . Energy Discharges 1 | . . 1 . Data Loss (minor) 3 | . 1 1 1 Misfires 3 | . . 3 . Overload Shots . | . . . . Overflow Damage . | . . . . Projectiles . | . . . . Explosions . | . . . . Melee . | . . . . Knockbacks . | . . . . Impact . | . . . . Kinetic . | . . . . Secondary . | . . . . Self-Inflicted Damage . | . . . . Shots . | . . . . Rammed . | . . . . Targets Rammed . | . . . . Kicked . | . . . . Crushed . | . . . . Highest Temperature 415 | 99 415 244 . Average Temperature 83 | 54 101 71 . Received Heat Transfer 630 | . 135 495 . Effects 1 | . 1 . . Interference 1 | . 1 . . Siege Activations . | . . . . Robots Corrupted . | . . . . Combat Hostiles . | . . . . Parts Fried . | . . . . Impact Corruptions . | . . . . Robots Melted 3 | 1 1 1 . Combat Hostiles 2 | . 1 1 . Parts Melted 15 | . 6 9 . Heat Transferred 5250 | 444 1443 3363 . Parts Sabotaged . | . . . . Parts Stolen . | . . . . Parts Stripped . | . . . . Power Chain Reactions . | . . . . Missiles Intercepted . | . . . . Alert | -11 -10 -9 -9 ------- Run | Scr Mat Mat Min Peak Influence 276 | 10 153 276 1 Initial 54 | . 5 54 1 Average 97 | 7 85 134 1 Maximum Alert Level 1 | . . 1 . Low Security (%) 88 | 100 100 71 100 Level 1 11 | . . 28 . Level 2 . | . . . . Level 3 . | . . . . Level 4 . | . . . . Level 5 . | . . . . High Security . | . . . . Max Security . | . . . . Squads Dispatched 3 | . 1 2 . Investigation 2 | . 1 1 . Extermination . | . . . . Reinforcement 1 | . . 1 . Assault . | . . . . Garrison . | . . . . Intercept . | . . . . Searches Triggered . | . . . . Construction Impeded . | . . . . Haulers Reinforced . | . . . . Active Scanning Responses . | . . . . Cargo Convoy Interrupts . | . . . . Stealth | -11 -10 -9 -9 --------- Run | Scr Mat Mat Min Distress Signals 5 | . 2 3 . Communications Jammed . | . . . . Distress Signals . | . . . . Times Spotted 36 | . 14 22 . Peak Tracking Total 5 | . 4 5 . Tactical Retreats 1 | . . 1 . Traps | -11 -10 -9 -9 ------- Run | Scr Mat Mat Min Traps Triggered 5 | . 3 2 . Indirectly . | . . . . Trap Hack Attempts . | . . . . Triggered . | . . . . Disarmed . | . . . . Reprogrammed . | . . . . Reused . | . . . . Traps Extracted . | . . . . Installed . | . . . . Triggered . | . . . . Machines | -11 -10 -9 -9 ---------- Run | Scr Mat Mat Min Machines Disabled . | . . . . Max in Single Turn . | . . . . Machines Sabotaged . | . . . . Garrisons Compromised . | . . . . Overloaded Fab Kills . | . . . . Hacking | -11 -10 -9 -9 --------- Run | Scr Mat Mat Min Machines Accessed 8 | . 5 3 . Terminals 8 | . 5 3 . Fabricators . | . . . . Repair Stations . | . . . . Recycling Units . | . . . . Scanalyzers . | . . . . Garrison Access . | . . . . Total Hacks 21 | . 13 8 . Successful 14 | . 9 5 . Failed 7 | . 4 3 . Catastrophic 1 | . . 1 . Database Lockouts . | . . . . Manual 14 | . 7 7 . Terminals 21 | . 13 8 . Fabricators . | . . . . Repair Stations . | . . . . Recycling Units . | . . . . Scanalyzers . | . . . . Garrison Access . | . . . . Terminal Hacks 11 | . 8 3 . Branch Access Points 1 | . 1 . . Emergency Access Points 1 | . 1 . . Machine Index 1 | . 1 . . Terminal Index 2 | . 1 1 . Alert Level 1 | . 1 . . Unreport Threat 1 | . . 1 . Locate Traps 1 | . . 1 . Zone Layout 3 | . 3 . . Fabricator Hacks . | . . . . Repair Station Hacks . | . . . . Recycling Unit Hacks . | . . . . Scanalyzer . | . . . . Garrison Access Hacks . | . . . . Unauthorized Hacks 3 | . 1 2 . Terminals 3 | . 1 2 . Track 1 | . 1 . . Assimilate 1 | . . 1 . Sabotage 1 | . . 1 . Fabricators . | . . . . Repair Stations . | . . . . Recycling Units . | . . . . Scanalyzers . | . . . . Garrison Access . | . . . . Data Cores Recovered . | . . . . Used . | . . . . Hacking Detections 4 | . 3 1 . Full Trace Events . | . . . . Feedback Events . | . . . . Feedback Blocked . | . . . . Robot Schematics Acquired . | . . . . Robots Built . | . . . . Authchips . | . . . . Time . | . . . . Total Robot Build Rating . | . . . . Part Schematics Acquired . | . . . . Parts Built . | . . . . Authchips . | . . . . Time . | . . . . Total Part Build Rating . | . . . . Parts Repaired . | . . . . Time . | . . . . Parts Recycled . | . . . . Recycled Matter . | . . . . Retrieved Matter . | . . . . Retrieved Components . | . . . . Parts Scanalyzed . | . . . . Part Schematics Acquired . | . . . . Parts Damaged . | . . . . Bothacking | -11 -10 -9 -9 ------------ Run | Scr Mat Mat Min Used RIF Installer . | . . . . Robots Hacked . | . . . . Non-combat . | . . . . Combat . | . . . . Robot Hacks Applied . | . . . . Relay Couplers Released . | . . . . Fabnet Peak Effective % . | . . . . Robots Rewired . | . . . . Allies Hacked . | . . . . Hacks Repelled . | . . . . Allies | -11 -10 -9 -9 -------- Run | Scr Mat Mat Min Total Allies 1 | . . 1 . Largest Group 1 | . . 1 . Highest-Rated Group 10 | . . 10 . Highest-Rated Ally 10 | . . 10 . Total Orders . | . . . . Ally Attacks . | . . . . Total Damage . | . . . . Kills . | . . . . Allies Corrupted . | . . . . Allies Melted . | . . . . Intel | -11 -10 -9 -9 ------- Run | Scr Mat Mat Min Robot Analysis Total . | . . . . Derelict Logs Recovered . | . . . . Drone Launches . | . . . . Drone Recoveries . | . . . . Exploration | -11 -10 -9 -9 ------------- Run | Scr Mat Mat Min Turns Passed 1496 | 48 782 582 84 Spaces Moved 891 | 30 532 275 54 Core 58 | . . 4 54 Treads . | . . . . Legs 833 | 30 532 271 . Wheels . | . . . . Hover . | . . . . Flight . | . . . . Fastest Speed 120 | 120 120 120 150 Average Speed 122 | 120 120 120 150 Slowest Speed 190 | 120 120 190 150 Overloaded Moves . | . . . . Propulsion Burnouts . | . . . . Robots Hopped . | . . . . Cave-ins Triggered . | . . . . Exploration Rate (%) 30 | 3 66 32 21 Regions Visited 3 Branch Regions 1 Pre-discovered Areas . | . . . . Known Exits Taken . | . . . . Unknown Exits Taken 3 | 1 1 1 . Scrap Searched . | . . . . Spaces Dug 1 | . 1 . . Terrain Destroyed 1 | . 1 . . Melee . | . . . . Projectile 1 | . 1 . . AOE . | . . . . Terrain Rammed . | . . . . Walls Destroyed . | . . . . Machines Disabled . | . . . . Actions | -11 -10 -9 -9 --------- Run | Scr Mat Mat Min Total 1150 | 35 637 422 56 Wait 140 | . 61 79 . Move 888 | 29 531 274 54 Hop . | . . . . Pick Up 12 | 2 9 1 . Fast Attach 3 | 1 . 2 . Attach 4 | . . 4 . Detach . | . . . . Swap 10 | . 3 5 2 Drop 13 | . 10 3 . Fire 80 | 3 23 54 . Melee . | . . . . Ram . | . . . . Kick . | . . . . Crush . | . . . . Escape Stasis . | . . . . Rewire . | . . . . Trap . | . . . . Miscellaneous . | . . . . Route ------- -11/Scrapyard -10/Materials (discovered 3 exits: *Mat / *Min x2) -9/Materials -9/Mines History --------- Turn | Location | Event 1 | -11/Scrapyard | Discovered new exit (range 3) 49 | -11/Scrapyard | Entered Materials 207 | -10/Materials | Discovered new exit (range 14) 226 | -10/Materials | Identified exit to Mines 307 | -10/Materials | Build established: Mutant 766 | -10/Materials | Discovered new exit (range 8) 831 | -10/Materials | Entered another Materials area 831 | -9/Materials | Evolved 2 slots: Propulsion x1, Utility x1 1372 | -9/Materials | Discovered new exit (range 14) 1413 | -9/Materials | Entered Mines 1439 | -9/Mines | Lost 6 parts (1p4n1w) 1497 | -9/Mines | Self-destructed Last Messages --------------- Purged threat record, alert level lowered. >>Force(Sabotage) SYSTEM_VULNERABLE[Fusion Modulator] NETWORK_OVERLOAD_FAIL 01364_ ALERT: Suspicious activity at Terminal M011. Dispatching Investigation squad. 01372_ EXIT=FOUND 01372_ Med. Laser destroyed. 01383_ Purification Channel disabled. 01392_ Imp. Aluminum Leg destroyed. 01395_ Y-45 Defender destroyed. 01397_ Acquired 10 matter. 01398_ Aluminum Leg destroyed. 01402_ Lgt. Ion Engine destroyed. 01408_ Aluminum Leg destroyed. 01409_ System corrupted: FCS attempts to trigger Sml. Laser. 01409_ System corrupted: Sml. Laser misfires. LOCATION=UNKNOWN GOAL=ESCAPE 01494_ System corrupted: Component data lost. Map ----- +----------------------------------------------------+ | ?????????????????????????????????? ##???#???? | | ???????????????????? ??????? ????? ##??????? | | ??????????????????? ?????????????? ##?????? | | ??????????????????? ?? ???? ?????? #?????? | | ???????????????????? ??????????????# #?????? | | ???????????????????? ????????????#? #?????? | | ????????????????????# ??????????????? #?????? | | ????????????????????# ?????? ????????# #??????? | | ????????????????????# ???????????????# #?#????? | | ????????????????????# ?????????#????## ##?????? | | ???????????????????## ###?????????### ##????? | | ???????????????????# = ##???????## ####?? | | ???????????????????# ##??????# ##? | | ????????????????????# #??????# """" #? | | ??????????????####?## [ ######### """" #? | | ?????????????## ## ## """" #? | | ??????????# ## / ## #? | | ????????? ####### ### #? | | ????????? ##????# #?# ## #? | | ??????????##### * ##???# ### #### ##? | | ??????????#???# ##??# #?######? | | ??????????#???# ## ##?# #???????? | | ?????????????# #?## #??##### #?????#?? | | ????????????# #???## ##??????# #???????? | | ?????????#??# ?????# ###??????# #?#?????? | | ????????????# ??????# @##???????## ##???????? | | ????????????? ???#??# #???????#?# #?#??????? | | ????????????????#????# ###??????## ##???????? | | ?????????????????????## ##?????????# #???????? | | ?????????????????????#####???#?#????## ##???????? | | ?????????????????????????????????????####????????? | | ?????????????????????????????????????????????????? | | ???????????????????????????#?????????????????????? | | ?????????????????????????????????????????????????? | | ?????????????????????????????#???????????????????? | | ???????????????????????????#???????????????#?????? | | ?????????????????????????????????????????????????? | | ?????????????????????????????????????????????????? | | ?????????????????????????????????????????????????? | | | | | | | | | | | | | | | | | | | | | | | +----------------------------------------------------+ Best States ------------- Heat Dissipation 38 Energy Generation 10 Energy Capacity 125 Matter Stores 300 Matter Capacity 300 Sight Range 16 Terrain Scan Range 16 Terrain Scan Density 10 Resistance: KI 20 Resistance: TH 20 Resistance: EX 20 Resistance: EM 20 Resistance: I 20 Resistance: S 20 Resistance: P 20 Evasion (%) 55 Targeting Accuracy 6 Offensive Hacking 10 Item Schematics ----------------- None Robot Schematics ------------------ None Fabricated ------------ Nothing Alien Tech Used ----------------- None Achievements -------------- None Challenges ------------ None Game ------ Seed CoolingSpreadSink Manual? 0 Play Time 00:23:06 Cumulative 105.6 hours Start 2022.10.22 @ 21:40:20 End 2022.10.23 @ 21:44:59 Sessions 4 Manual Loads 0 Difficulty Adventurer Special Mode None Game No. 74 Rogue 3 Adventurer 53 Explorer 18 Win Type - Total 1 Types 1/0/0/0/0/0/0/0/0 Lore% 48 Gallery% 54 Achievement% 41 Wizard Run 0 Options --------- ASCII 0 Keyboard 0 Movement Numpad Keybinds 0 Fullscreen 1 Font 24/Smallcaps Map View 76x50 Tactical HUD 1 Map Filters NONE Filters BRIGHTNESS(87) Steam 1 RUN: 9718551c-4169-4da5-8c3b-d50cc706d2ee